Cogmind - Beta 17.1 @@@ ROGUE MODE // 2026.09.11 @ 15:14:52 Player: naththebg Result: Self-destructed Performance ------------- Evolutions (1) 500 Regions Visited (3) 600 Robots Destroyed (52) 260 Value Destroyed (1011) 1011 Prototype IDs (3) 60 Alien Tech Used (0) 0 Bonus (5150) 5150 TOTAL SCORE: 7581 Bonus ------- Prayed to X0-1V1 5000 Major X0-1V1 Interference 150 Cogmind --------- Core Integrity 300/300 Matter 150/150 Energy 250/250 System Corruption 0% Temperature Cool (0) Movement Treading (320) Ox2 Location -9/Materials Parts ------- > --- POWER (1) -------- Ion Engine > --- PROPULSION (2) --- Light Treads > --- UTILITY (3) ------ Heat Sink High-capacity Storage Unit Seismic Detector > --- WEAPON (3) ------- Heavy Particle Gun Heavy Particle Gun Heavy Particle Gun > --- INVENTORY (20) --- Ion Engine Ion Engine Light Ion Engine Light Treads Light Treads Light Treads Light Treads Wheel Heat Sink Small Storage Unit High-capacity Matter Pod (200) EM Pulse Gun Small Laser Beam Rifle Heavy Particle Gun Light Cannon Grenade Launcher Rocket Launcher Peak State ------------ > --- POWER ------------ Ion Engine > --- PROPULSION ------- Light Treads Light Treads > --- UTILITY ---------- High-capacity Storage Unit X0-1V1's Piety Tracker > --- WEAPON ----------- Light Cannon Grenade Launcher > --- INVENTORY -------- Ion Engine Ion Engine Light Ion Engine Light Treads Light Treads Light Treads Light Treads Wheel Small Storage Unit High-capacity Matter Pod EM Pulse Gun Small Laser Assault Rifle Assault Rifle Assault Rifle [Rating: 20] Favorites ----------- Power Ion Engine Engine Ion Engine Propulsion Light Treads Treads Light Treads Utility Seismic Detector Device Seismic Detector Storage High-capacity Storage Unit Weapon Light Cannon Energy Gun Heavy Particle Gun Ballistic Gun Light Assault Rifle Ballistic Cannon Light Cannon Launcher Grenade Launcher Build | -11 -10 -10 -9 ------- Run | Yrd Mat Min Mat Slots Evolved 2 | . . . 2 Power . | . . . . Propulsion . | . . . . Utility 1 | . . . 1 Weapon 1 | . . . 1 Parts Attached 20 | 7 6 3 4 Power 2 | 1 1 . . Engine 2 | 1 1 . . Core . | . . . . Reactor . | . . . . Propulsion 4 | 2 2 . . Treads 4 | 2 2 . . Leg . | . . . . Wheel . | . . . . Hover . | . . . . Flight . | . . . . Utility 6 | 2 1 2 1 Device 4 | 1 . 2 1 Storage 2 | 1 1 . . Processor . | . . . . Hackware . | . . . . Protection . | . . . . Artifact . | . . . . Weapon 8 | 2 2 1 3 Energy Gun 4 | 1 . . 3 Energy Cannon . | . . . . Ballistic Gun 1 | 1 . . . Ballistic Cannon 1 | . 1 . . Launcher 2 | . 1 1 . Special Weapon . | . . . . Impact Weapon . | . . . . Slashing Weapon . | . . . . Piercing Weapon . | . . . . Special Melee Weapon . | . . . . Unidentified Prototypes 3 | . . 2 1 Parts Lost 2 | . . 1 1 Power . | . . . . Propulsion 1 | . . . 1 Utility . | . . . . Weapon 1 | . . 1 . Highest Loss Streak 1 | . . 1 1 To Critical Strikes . | . . . . Average Backups 13 | 2 12 15 16 Power 2 | . 2 3 3 Propulsion 3 | . 3 5 5 Utility 1 | . 1 2 2 Weapon 5 | . 5 5 6 Tool/Special . | . . . . Unused Backups 13 | . . . 13 Power 2 | . . . 2 Propulsion 3 | . . . 3 Utility 1 | . . . 1 Weapon 7 | . . . 7 Tool/Special . | . . . . Average Slot Usage (%) 97 | . 97 99 83 Engine 13 | . 14 14 11 Treads 27 | . 28 28 19 Device 13 | . 14 14 13 Storage 13 | . 14 14 11 Energy Gun 1 | . . . 14 Ballistic Cannon 13 | . 13 14 7 Launcher 12 | . 11 13 7 Peak Build Rating 20 | 7 8 20 19 Average Rating 8 | 5 7 8 13 On Entrance 5 | . 7 8 8 Avg Prop Armor Cover (%) . | . . . . Naked Turns . | . . . . Heaviest Build 56 | 13 52 52 56 Greatest Support 40 | 40 40 40 40 Greatest Overweight (x) 2 | . 1 1 2 Average Overweight (x) . | . . 1 1 Largest Inventory Capacity 20 | 8 20 20 20 Average Capacity 18 | 7 18 20 20 Most Carried 18 | 4 17 16 18 Average Carried 13 | 2 12 15 16 Final Capacity 20 | 8 20 20 20 Final Carried 18 | 3 16 16 18 Class Distribution -------------------- 95% | Mutant 4% | Gunner Dominant Class ---------------- Mutant | -10/Materials Mutant | -10/Mines Gunner | -9/Materials Resources | -11 -10 -10 -9 ----------- Run | Yrd Mat Min Mat Matter Collected 1042 | 267 492 220 63 Remotely . | . . . . Salvage Created 1129 | 177 441 145 366 Parts 79 | 13 28 23 15 Haulers Intercepted 2 | . 1 . 1 Recyclers Shooed 2 | 1 1 . . Parts Field Recycled . | . . . . Retrieved Matter . | . . . . Parts Self-Destructed . | . . . . Prevented . | . . . . Parts Restored . | . . . . Kills | -11 -10 -10 -9 ------- Run | Yrd Mat Min Mat Combat Hostiles Destroyed 31 | . 16 12 3 Guns 3 | . . . 3 AOE 28 | . 16 12 . Classes Destroyed 9 | 3 5 . 1 Worker 5 | 2 1 2 . Tunneler 5 | 4 . 1 . Hauler 2 | . 1 . 1 Recycler 5 | 1 2 . 2 Operator 1 | . 1 . . Watcher 3 | . 3 . . Swarmer 14 | . 6 8 . Grunt 14 | . 10 4 . Sentry 3 | . . . 3 Best Kill Streak 5 | 4 5 3 3 Combat Bots Only 3 | . 3 3 3 Max Kills in Single Turn 3 | 1 3 3 1 Gunslinging . | . . . . Exploded 3 | . 3 3 . Melee . | . . . . Uniques/NPCs Destroyed . | . . . . Combat | -11 -10 -10 -9 -------- Run | Yrd Mat Min Mat Hostile Shots Fired 69 | . 27 26 16 Missed 23 | . 9 11 3 Hits 46 | . 18 15 13 Projectile 46 | . 18 15 13 Critical Strikes 1 | . . . 1 Damage Taken 760 | . 338 235 187 Core 144 | . 82 34 28 Absorbed by Shields . | . . . . Core Remaining (%) 84 | 100 . 68 . Volleys Fired 90 | 27 33 21 9 Largest 3 | 2 1 1 3 Hottest 165 | 60 30 30 165 Shots Fired 129 | 48 33 21 27 Gun 75 | 48 . . 27 Cannon . | . . . . Launcher 54 | . 33 21 . Special . | . . . . Kinetic 27 | 27 . . . Thermal 48 | 21 . . 27 Explosive 54 | . 33 21 . Electromagnetic . | . . . . Robot Hit Streak 12 | 11 10 2 12 Robot Miss Streak 3 | 3 . 3 1 Penetration Max . | . . . . Secondary Targets . | . . . . Shots Hit Robots 63 | 34 9 3 17 Core Hits 81 | 12 43 17 9 Critical Kills . | . . . . Critical Parts Destroyed . | . . . . Critical Strikes . | . . . . Melee Attacks . | . . . . Impact . | . . . . Slashing . | . . . . Piercing . | . . . . Sneak Attacks . | . . . . Combat Hostiles . | . . . . Follow-up Attacks . | . . . . Damage Inflicted 2840 | 315 1334 856 335 Guns 650 | 315 . . 335 Cannons . | . . . . Explosions 2177 | . 1330 847 . Melee . | . . . . Ramming 13 | . 4 9 . Kinetic 139 | 139 . . . Thermal 613 | 176 . 102 335 Explosive 2075 | . 1330 745 . Electromagnetic . | . . . . Impact . | . . . . Slashing . | . . . . Piercing . | . . . . Highest Corruption 17 | . . 17 . Average Corruption 17 | . . 17 . Corruption Purged . | . . . . Corruption Blocked . | . . . . Effects 1 | . . 1 . Message Errors 1 | . . 1 . Overload Shots . | . . . . Overflow Damage 69 | . 21 48 . Projectiles . | . . . . Explosions 69 | . 21 48 . Melee . | . . . . Knockbacks . | . . . . Impact . | . . . . Kinetic . | . . . . Secondary . | . . . . Self-Inflicted Damage 228 | . 136 92 . Shots 8 | . 5 3 . Rammed 4 | . 2 2 . Targets Rammed 5 | . 2 3 . Kicked . | . . . . Crushed 1 | . . 1 . Highest Temperature 455 | 80 4 4 455 Average Temperature 104 | 33 2 4 184 Received Heat Transfer 174 | . 60 33 81 Effects 4 | . . . 4 Shutdowns 1 | . . . 1 Interference 2 | . . . 2 Damage (minor) 1 | . . . 1 Siege Activations . | . . . . Martial Activations . | . . . . Shielding Activations . | . . . . Robots Disrupted . | . . . . Combat Hostiles . | . . . . Robots Corrupted . | . . . . Combat Hostiles . | . . . . Parts Fried . | . . . . Impact Corruptions . | . . . . Robots Melted . | . . . . Combat Hostiles . | . . . . Parts Melted 5 | 1 . . 4 Heat Transferred 1166 | 400 . 100 666 Parts Sabotaged . | . . . . Parts Stolen . | . . . . Parts Stripped . | . . . . Power Chain Reactions . | . . . . Alert | -11 -10 -10 -9 ------- Run | Yrd Mat Min Mat Maximum Alert Level 1 | . 1 . . Low Security (%) 98 | 100 97 100 100 Level 1 1 | . 2 . . Level 2 . | . . . . Level 3 . | . . . . Level 4 . | . . . . Level 5 . | . . . . High Security . | . . . . Max Security . | . . . . Peak Influence 218 | 15 218 139 71 Initial 66 | . . 66 . Average 81 | 2 116 60 18 Influence Increases 1263 | 35 703 417 108 Destroy 0b10 Robot/C 620 | . 320 240 60 Destroy 0b10 Robot/NC 105 | 35 40 15 15 Destroy Leader 140 | . 68 40 32 Successful Hack 11 | . 11 . . Select Force Hacks 60 | . 60 . . Disable Machine 105 | . 75 30 . Destroy Structure 222 | . 129 92 1 Influence Decreases 1205 | 35 531 589 50 Entered New Map 106 | . . 106 . Time Decay 1079 | 35 531 473 40 Lost Part 20 | . . 10 10 Squads Dispatched 2 | . 2 . . Investigation 2 | . 2 . . Extermination . | . . . . Reinforcement . | . . . . Assault . | . . . . Garrison . | . . . . Intercept . | . . . . Searches Triggered . | . . . . Construction Impeded . | . . . . Haulers Reinforced . | . . . . Active Scanning Responses . | . . . . Cargo Convoy Interrupts . | . . . . Stealth | -11 -10 -10 -9 --------- Run | Yrd Mat Min Mat Distress Signals 2 | . 2 . . Communications Jammed . | . . . . Distress Signals . | . . . . Times Spotted 32 | . 19 10 3 Peak Tracking Total 4 | . 4 3 2 Tactical Retreats . | . . . . Traps | -11 -10 -10 -9 ------- Run | Yrd Mat Min Mat Traps Triggered 1 | . 1 . . Indirectly . | . . . . Trap Hack Attempts . | . . . . Triggered . | . . . . Disarmed . | . . . . Reprogrammed . | . . . . Reused . | . . . . Traps Extracted . | . . . . Installed . | . . . . Triggered . | . . . . Machines | -11 -10 -10 -9 ---------- Run | Yrd Mat Min Mat Machines Disabled 8 | . 6 2 . Max in Single Turn 2 | . 2 1 . Machines Repaired . | . . . . Machines Dismantled . | . . . . Machines Sabotaged . | . . . . Overloaded Fab Kills . | . . . . Hacking | -11 -10 -10 -9 --------- Run | Yrd Mat Min Mat Machines Accessed 9 | . 9 . . Terminals 7 | . 7 . . Fabricators . | . . . . Repair Stations . | . . . . Recycling Units 2 | . 2 . . Scanalyzers . | . . . . Garrison Access . | . . . . Total Hacks 18 | . 18 . . Successful 10 | . 10 . . Failed 8 | . 8 . . Catastrophic 2 | . 2 . . Database Lockouts . | . . . . Manual 17 | . 17 . . Terminals 16 | . 16 . . Fabricators . | . . . . Repair Stations . | . . . . Recycling Units 2 | . 2 . . Scanalyzers . | . . . . Garrison Access . | . . . . Terminal Hacks 1 | . 1 . . Record 1 | . 1 . . Fabricator Hacks . | . . . . Repair Station Hacks . | . . . . Recycling Unit Hacks . | . . . . Scanalyzer . | . . . . Garrison Access Hacks . | . . . . Unauthorized Hacks 9 | . 9 . . Terminals 7 | . 7 . . Botnet 1 | . 1 . . Operators 1 | . 1 . . Skim 5 | . 5 . . Fabricators . | . . . . Repair Stations . | . . . . Recycling Units 2 | . 2 . . Tunnel 2 | . 2 . . Scanalyzers . | . . . . Garrison Access . | . . . . Data Cores Recovered . | . . . . Used . | . . . . Hacking Detections 5 | . 5 . . Full Trace Events . | . . . . Feedback Events . | . . . . Feedback Blocked . | . . . . Robot Schematics Acquired . | . . . . Robots Built . | . . . . Authchips . | . . . . Time . | . . . . Total Robot Build Rating . | . . . . Part Schematics Acquired . | . . . . Parts Built . | . . . . Authchips . | . . . . Time . | . . . . Total Part Build Rating . | . . . . Part Studies Acquired . | . . . . Parts Repaired . | . . . . Time . | . . . . Parts Recycled . | . . . . Recycled Matter . | . . . . Retrieved Matter . | . . . . Retrieved Components . | . . . . Parts Scanalyzed . | . . . . Part Schematics Acquired . | . . . . Parts Damaged . | . . . . Bothacking | -11 -10 -10 -9 ------------ Run | Yrd Mat Min Mat Used RIF Installer . | . . . . Robots Hacked . | . . . . Non-combat . | . . . . Combat . | . . . . Robot Hacks Applied . | . . . . Relay Couplers Released . | . . . . Fabnet Peak Effective % . | . . . . Robots Rewired . | . . . . Allies Hacked . | . . . . Hacks Repelled . | . . . . Allies | -11 -10 -10 -9 -------- Run | Yrd Mat Min Mat Total Allies . | . . . . Largest Group . | . . . . Highest-Rated Group . | . . . . Highest-Rated Ally . | . . . . Total Orders . | . . . . Ally Attacks . | . . . . Total Damage . | . . . . Kills . | . . . . Allies Corrupted . | . . . . Allies Melted . | . . . . X0-1V1 Amusement Gains 11 | . 6 . 5 Average Entertainment 2 | . 5 2 6 Good Acts 3 | . . 2 1 Bad Acts 4 | . . 4 . Intel | -11 -10 -10 -9 ------- Run | Yrd Mat Min Mat Active Infowar (turns) 3412 | 24 1734 1458 196 Seismic 3412 | 24 1734 1458 196 Robot Analysis Total . | . . . . Derelict Logs Recovered 1 | . . 1 . Drone Launches . | . . . . Drone Recoveries . | . . . . Exploration | -11 -10 -10 -9 ------------- Run | Yrd Mat Min Mat Turns Passed 3626 | 177 1734 1462 253 Spaces Moved 1331 | 61 610 583 77 Core 4 | 4 . . . Treads 1327 | 57 610 583 77 Legs . | . . . . Wheels . | . . . . Hover . | . . . . Flight . | . . . . Fastest Speed 50 | 50 160 240 240 Average Speed 231 | 152 229 240 255 Slowest Speed 320 | 160 240 240 320 Overloaded Moves . | . . . . Propulsion Burnouts . | . . . . Robots Hopped . | . . . . Potential Cave-ins . | . . . . Cave-ins Triggered . | . . . . Exploration Rate (%) 52 | 5 98 99 9 Regions Visited 3 Branch Regions 1 Pre-discovered Areas 4 | . 3 1 . Known Exits Taken 1 | . . 1 . Unknown Exits Taken 2 | 1 1 . . Scrap Searched 1 | . . 1 . Spaces Dug . | . . . . Terrain Destroyed 272 | . 147 125 . Melee . | . . . . Projectile . | . . . . AOE 272 | . 147 125 . Terrain Rammed . | . . . . Walls Destroyed . | . . . . Machines Disabled . | . . . . Actions | -11 -10 -10 -9 --------- Run | Yrd Mat Min Mat Total 1743 | 100 910 621 112 Wait 268 | 1 247 6 14 Move 1328 | 60 609 582 77 Hop . | . . . . Pick Up 22 | 5 10 2 5 Fast Attach 8 | 5 . 1 2 Attach 5 | 2 1 2 . Detach 1 | . 1 . . Swap 10 | . 6 2 2 Drop 6 | . 1 2 3 Fire 90 | 27 33 21 9 Melee . | . . . . Ram . | . . . . Kick . | . . . . Crush 5 | . 2 3 . Escape Stasis . | . . . . Rewire . | . . . . Trap . | . . . . Miscellaneous . | . . . . Route ------- -11/Scrapyard -10/Materials (discovered 5 exits: *Mat x3 / [*Min] / *Sub) -10/Mines (discovered 2 exits: *Mat x2) -9/Materials (discovered 2 exits: Min / *Sto) History --------- Turn | Location | Event 8 | -11/Scrapyard | Discovered new exit (range 15) 178 | -11/Scrapyard | Entered Materials 317 | -10/Materials | Build established: Mutant 548 | -10/Materials | Discovered new exit (range 13) 759 | -10/Materials | Discovered new exit (range 7) 898 | -10/Materials | Discovered new exit (range 10) 1180 | -10/Materials | Discovered new exit (range 9) 1445 | -10/Materials | Identified exit to Subcaves 1528 | -10/Materials | Learned Storage interactive machine intel 1596 | -10/Materials | Learned Storage emergency access door positions 1680 | -10/Materials | Loaded intel: 14 trap records 1817 | -10/Materials | Prayed at D.C.S.S. Altar Unit 1912 | -10/Materials | Entered Mines 1961 | -10/Mines | Found a damaged Exp. Sensor Array with a note attached 1966 | -10/Mines | Found Prototype Device 1967 | -10/Mines | Identified Exp. Sensor Array 2035 | -10/Mines | Learned location of Mines (-8) 2109 | -10/Mines | Core integrity restored by X0-1V1 (+37) 2140 | -10/Mines | Discovered new exit (range 14) 2221 | -10/Mines | Identified exit to Materials 2221 | -10/Mines | X0-1V1 revealed exit location to -9/Materials 2434 | -10/Mines | X0-1V1 sent hostile S-10 Pest (x3) 3008 | -10/Mines | Received a Rocket Launcher from a helpful Derelict 3365 | -10/Mines | System corruption reached 10% 3374 | -10/Mines | Entered Materials 3374 | -9/Materials | Evolved 2 slots: Utility x1, Weapon x1 3375 | -9/Materials | Identified exit to Mines 3375 | -9/Materials | Identified exit to Storage 3598 | -9/Materials | Energy generation permanently improved by X0-1V1 (+10; -100 max core) 3627 | -9/Materials | Self-destructed Last Messages --------------- 03570_ Overheating: System interference. 03570_ Heat Sink temporarily disabled. 03570_ Seismic Detector temporarily disabled. 03570_ K-01 Serf collects debris. 03572_ Acquired 63 matter. 03574_ K-01 Serf collects debris. 03581_ Acquired Heat Sink. 03583_ K-01 Serf collects debris. 03584_ R-06 Scavenger collects Hvy. Assault Rifle. 03586_ R-06 Scavenger collects Lgt. Treads. 03588_ R-06 Scavenger collects Hvy. Assault Rifle. 03589_ R-06 Scavenger destroyed. 03591_ R-06 Scavenger collects Assault Rifle. 03592_ R-06 Scavenger destroyed. 03593_ K-01 Serf collects debris. 03598_ X0-1V1: "Any self-respecting god will have their pound of flesh." (permanent -100 core integrity, +10 energy generation) 03598_ K-01 Serf collects debris. 03598_ A-02 Transporter destroyed. 03601_ K-01 Serf collects debris. Map ----- +----------------------------------------------------+ | ?????????????# # ##########?????????? | | ?????????????# | + #??????????????????? | | ?????????????# # ######?????????????? | | ?????????????# # ## ==#?????????????? | | ?????????????##" "###### ## ==#?????????????? | | ??????????????#"R"????# #?????????????? | | ??????????????#"""????# [[ #?????????????? | | ??????????????###?????# " * [!!#?????????????? | | ??????????????????????# !!#?????????????? | | ??????????????????????# #####?????????????? | | ???????????????######### ##?????????????????? | | ???????????????# # #??????????????????? | | ?????????????????""""" # #??????????????????? | | ?????????????????""""" + #??????????????????? | | ?????????????????""""" # #??????????????????? | | ???????????????# # #??????????????????? | | ???????????????#######?# #??????????????????? | | ?????????????????#########+#??????????????????? | | ?????????????????# [#??????????????????? | | ?????????????????# ] #??????????????????? | | ?????????????????# #??????????????????? | | ?????????????????# ! = #??????????????????? | | ??????????###+#??# =!%= #??????????????????? | | ??????????# ######+#####??? ?????????????? | | ??????????# =[%[k#### """ ?????????????? | | ??????????# =[@%[*%+ """ ?????????????? | | ??????????# m =k[#### """ ?????????????? | | ??????????# ##### =!#?????? ?????????????? | | ??????????### #?????# [#?????????????????????? | | ???????????????????# #????????????????????? | | ???????????????????# u ???????????????????? | | ???????????????????# > ??????????????????? | | ???????????????????# ?????????????????? | | ???????????????????# #####????????????????? | | ???????????????????###+###????????????????????? | | ?????????????????????? ???????????????????????? | | ??????????????????????"???????????????????????? | | ??????????????????????"???????????????????????? | | ??????????????????????????????????????????????? | | ??????????????????????????????????????????????? | | ??????????????????????????????????????????????? | | ??????????????????????????????????????????????? | | ??????????????????????????????????????????????? | | ??????????????????????????????????????????????? | | ??????????????????????????????????????????????? | | ??????????????????????????????????????????????? | | ??????????????????????????????????????????????? | | ??????????????????????????????????????????????? | | ??????????????????????????????????????????????? | | ??????????????????????????????????????????????? | +----------------------------------------------------+ Best States ------------- Heat Dissipation 38 Energy Generation 20 Energy Capacity 250 Matter Stores 300 Matter Capacity 300 Sight Range 16 Terrain Scan Density 10 Evasion (%) 40 Recoil Reduction 2 Item Schematics ----------------- None Robot Schematics ------------------ None Fabricated ------------ Nothing Repaired ---------- Nothing Studied --------- None Alien Tech Used ----------------- None Achievements -------------- None Challenges ------------ None Game ------ Seed MetafiberArchitectSpiker Manual? 0 Play Time 00:13:35 Cumulative 646.6 hours Start 2026.09.11 @ 15:02:18 End 2026.09.11 @ 15:14:52 Sessions 1 Manual Loads 0 Difficulty Rogue Special Mode None Game No. 352 Rogue 352 Adventurer 0 Explorer 0 Win Type - Total 21 Types 10/2/3/1/1/0/1/1/0/2 Lore% 86 Gallery% 85 Achievement% 77 Wizard Run 0 Options --------- Layout 0 ASCII 0 Keyboard 0 Movement Mouse Keybinds 0 Fullscreen 1 Font 18/SmallcapsGlow Map View 76x50 Zoom Use 0% Tactical HUD 1 Map Filters NONE Filters NONE Steam 1 RUN: aabf4e41-6184-452c-9f4e-d5bf50ea0cbd